Cogmind - Beta 11 X8 @@@ ROGUE MODE // 2021.11.05 @ 01:56:27 Player: Olga Result: Destroyed by Y-45 Defender with Beam Rifle Performance ------------- Evolutions (2) 1000 Regions Visited (5) 1000 Robots Destroyed (19) 95 Value Destroyed (788) 788 Prototype IDs (23) 460 Alien Tech Used (0) 0 Bonus (300) 300 TOTAL SCORE: 3643 Bonus ------- Aligned with FarCom 300 Cogmind --------- Core Integrity 0/550 Matter 300/300 Energy 100/100 System Corruption 0% Temperature Cool (9) Movement Core (200) Ox3 Location -8/Materials Parts ------- > --- POWER (1) -------- (None) > --- PROPULSION (4) --- (None) > --- UTILITY (4) ------ Medium Storage Unit Seismic Analyzer > --- WEAPON (2) ------- (None) > --- INVENTORY (10) --- Nuclear Core Light Nuclear Core Aluminum Leg Core Shielding Improved Light Armor Plating Supersonic Drone Bay (1/1) Light Assault Rifle Improved Light Cannon Mining Laser Peak State ------------ > --- POWER ------------ Ion Engine > --- PROPULSION ------- Light Treads Improved Treads Aluminum Leg Aluminum Leg > --- UTILITY ---------- Medium Storage Unit Terrain Scanner Supersonic Drone Bay > --- WEAPON ----------- Heavy Assault Rifle Heavy Assault Rifle > --- INVENTORY -------- Light Nuclear Core Terrain Scanner Light Assault Rifle Heavy Assault Rifle Heavy Assault Rifle Improved Light Cannon Grenade Launcher Mining Laser [Rating: 21] Favorites ----------- Power Ion Engine Engine Ion Engine Power Core Light Nuclear Core Propulsion Light Treads Treads Light Treads Leg Aluminum Leg Utility Medium Storage Unit Device Terrain Scanner Storage Medium Storage Unit Processor Seismic Analyzer Protection Hardened Light Armor Plating Weapon Heavy Assault Rifle Ballistic Gun Heavy Assault Rifle Ballistic Cannon Improved Light Cannon Launcher Grenade Launcher Build | -11 -10 -10 -10 -9 -8 ------- Run | Scr Mat Min Exi Min Mat Slots Evolved 4 | . . . . . 4 Power . | . . . . . . Propulsion 2 | . . . . . 2 Utility 2 | . . . . . 2 Weapon . | . . . . . . Parts Attached 34 | 6 6 . . 1 21 Power 3 | 1 . . . . 2 Engine 1 | 1 . . . . . Core 2 | . . . . . 2 Reactor . | . . . . . . Propulsion 8 | 2 2 . . 1 3 Treads 3 | . 2 . . 1 . Leg 5 | 2 . . . . 3 Wheel . | . . . . . . Hover . | . . . . . . Flight . | . . . . . . Utility 9 | 1 2 . . . 6 Device 3 | . 1 . . . 2 Storage 2 | 1 1 . . . . Processor 1 | . . . . . 1 Hackware . | . . . . . . Protection 3 | . . . . . 3 Artifact . | . . . . . . Weapon 14 | 2 2 . . . 10 Energy Gun . | . . . . . . Energy Cannon . | . . . . . . Ballistic Gun 11 | 2 2 . . . 7 Ballistic Cannon 2 | . . . . . 2 Launcher 1 | . . . . . 1 Special Weapon . | . . . . . . Impact Weapon . | . . . . . . Slashing Weapon . | . . . . . . Piercing Weapon . | . . . . . . Special Melee Weapon . | . . . . . . Unidentified Prototypes . | . . . . . . Parts Lost 15 | . . . . . 15 Power 2 | . . . . . 2 Propulsion 5 | . . . . . 5 Utility 3 | . . . . . 3 Weapon 5 | . . . . . 5 Highest Loss Streak 8 | . . . . . 8 Average Slot Usage (%) 86 | . 99 100 100 100 58 Engine 10 | . 14 14 14 14 3 Treads 20 | . 24 28 28 28 7 Leg 3 | . 3 . . . 8 Device 11 | . 13 14 14 14 8 Storage 12 | . 14 14 14 14 9 Processor 2 | . . . . . 8 Ballistic Gun 22 | . 28 28 28 28 9 Naked Turns . | . . . . . . Heaviest Build 27 | 12 22 22 22 22 27 Greatest Support 43 | 20 40 40 40 43 43 Greatest Overweight (x) 6 | 1 . . . . 6 Average Overweight (x) . | . . . . . 1 Largest Inventory Capacity 10 | 8 10 10 10 10 10 Average Capacity 9 | 7 9 10 10 10 10 Most Carried 10 | 8 10 10 10 10 10 Average Carried 9 | 5 9 9 9 10 8 Final Capacity 10 | 8 10 10 10 10 10 Final Carried 10 | 6 10 10 10 10 9 Class Distribution -------------------- 68% | Mutant 31% | Skirmisher Dominant Class ---------------- Mutant | -10/Materials Mutant | -10/Mines Mutant | -10/Exiles Skirmisher | -9/Mines Mutant | -8/Materials Resources | -11 -10 -10 -10 -9 -8 ----------- Run | Scr Mat Min Exi Min Mat Matter Collected 908 | 250 160 . . 10 488 Remotely . | . . . . . . Salvage Created 819 | . 315 . . . 504 Parts 37 | . 20 . . . 17 Haulers Intercepted . | . . . . . . Recyclers Shooed . | . . . . . . Parts Field Recycled . | . . . . . . Retrieved Matter . | . . . . . . Parts Self-Destructed . | . . . . . . Prevented . | . . . . . . Kills | -11 -10 -10 -10 -9 -8 ------- Run | Scr Mat Min Exi Min Mat Combat Hostiles Destroyed 18 | . 6 . . . 12 Guns 12 | . 6 . . . 6 Cannons 4 | . . . . . 4 AOE 2 | . . . . . 2 Classes Destroyed 4 | . 2 . . . 2 Recycler 1 | . 1 . . . . Grunt 16 | . 6 . . . 10 Duelist 1 | . . . . . 1 Sentry 1 | . . . . . 1 Best Kill Streak 3 | . 3 . . . 3 Combat Bots Only 3 | . 2 . . . 3 Max Kills in Single Turn 1 | . 1 . . . 1 Gunslinging . | . . . . . . Exploded 1 | . . . . . 1 Melee . | . . . . . . Uniques/NPCs Destroyed . | . . . . . . Combat | -11 -10 -10 -10 -9 -8 -------- Run | Scr Mat Min Exi Min Mat Damage Taken 2386 | . 197 . . . 2189 Core 586 | . 25 . . . 561 Absorbed by Shields . | . . . . . . Core Remaining (%) 95 | 100 . . . 90 . Volleys Fired 76 | . 15 . . . 61 Largest 2 | . 2 . . . 2 Hottest 62 | . 46 . . . 62 Shots Fired 139 | . 30 . . . 109 Gun 118 | . 30 . . . 88 Cannon 18 | . . . . . 18 Launcher 3 | . . . . . 3 Special . | . . . . . . Kinetic 136 | . 30 . . . 106 Thermal . | . . . . . . Explosive 3 | . . . . . 3 Electromagnetic . | . . . . . . Robot Hit Streak 10 | . 5 . . . 10 Robot Miss Streak 2 | . 2 . . . 2 Penetration Max . | . . . . . . Secondary Targets . | . . . . . . Shots Hit Robots 100 | . 17 . . . 83 Core Hits 37 | . 9 . . . 28 Critical Kills . | . . . . . . Critical Parts Destroyed . | . . . . . . Critical Strikes . | . . . . . . Melee Attacks . | . . . . . . Impact . | . . . . . . Slashing . | . . . . . . Piercing . | . . . . . . Sneak Attacks . | . . . . . . Combat Hostiles . | . . . . . . Follow-up Attacks . | . . . . . . Damage Inflicted 1798 | . 254 . . . 1544 Guns 1257 | . 254 . . . 1003 Cannons 320 | . . . . . 320 Explosions 219 | . . . . . 219 Melee . | . . . . . . Ramming 2 | . . . . . 2 Kinetic 1577 | . 254 . . . 1323 Thermal . | . . . . . . Explosive 219 | . . . . . 219 Electromagnetic . | . . . . . . Impact . | . . . . . . Slashing . | . . . . . . Piercing . | . . . . . . Highest Corruption . | . . . . . . Average Corruption . | . . . . . . Corruption Purged . | . . . . . . Overload Shots . | . . . . . . Overflow Damage 5 | . . . . . 5 Projectiles . | . . . . . . Explosions 5 | . . . . . 5 Melee . | . . . . . . Knockbacks 6 | . . . . . 6 Impact . | . . . . . . Kinetic 6 | . . . . . 6 Secondary . | . . . . . . Self-Inflicted Damage 73 | . . . . . 73 Shots 3 | . . . . . 3 Rammed 1 | . . . . . 1 Targets Rammed 2 | . 1 . . . 1 Kicked . | . . . . . . Crushed 1 | . 1 . . . . Highest Temperature 154 | . 4 . . . 154 Average Temperature 48 | . 1 . . . 55 Received Heat Transfer 1308 | . 111 . . . 1197 Siege Activations . | . . . . . . Robots Corrupted . | . . . . . . Combat Hostiles . | . . . . . . Parts Fried . | . . . . . . Impact Corruptions . | . . . . . . Robots Melted . | . . . . . . Combat Hostiles . | . . . . . . Parts Melted . | . . . . . . Heat Transferred . | . . . . . . Parts Sabotaged . | . . . . . . Parts Stolen . | . . . . . . Parts Stripped . | . . . . . . Power Chain Reactions . | . . . . . . Missiles Intercepted . | . . . . . . Alert | -11 -10 -10 -10 -9 -8 ------- Run | Scr Mat Min Exi Min Mat Peak Influence 155 | . 90 34 . . 155 Initial 34 | . . 34 . . . Average 24 | . 22 34 . . 41 Maximum Alert Level . | . . . . . . Low Security (%) 100 | 100 100 100 . 100 100 Level 1 . | . . . . . . Level 2 . | . . . . . . Level 3 . | . . . . . . Level 4 . | . . . . . . Level 5 . | . . . . . . High Security . | . . . . . . Max Security . | . . . . . . Squads Dispatched 2 | . 1 . . . 1 Investigation . | . . . . . . Extermination . | . . . . . . Reinforcement 2 | . 1 . . . 1 Assault . | . . . . . . Garrison . | . . . . . . Intercept . | . . . . . . Construction Impeded . | . . . . . . Haulers Reinforced . | . . . . . . Active Scanning Responses . | . . . . . . Cargo Convoy Interrupts . | . . . . . . Stealth | -11 -10 -10 -10 -9 -8 --------- Run | Scr Mat Min Exi Min Mat Distress Signals 2 | . . . . 1 1 Communications Jammed . | . . . . . . Distress Signals . | . . . . . . Times Spotted 24 | . 7 . . . 17 Peak Tracking Total 3 | . 2 . . . 3 Tactical Retreats 1 | . . . . . 1 Traps | -11 -10 -10 -10 -9 -8 ------- Run | Scr Mat Min Exi Min Mat Traps Triggered . | . . . . . . Indirectly . | . . . . . . Trap Hack Attempts . | . . . . . . Triggered . | . . . . . . Disarmed . | . . . . . . Reprogrammed . | . . . . . . Reused . | . . . . . . Traps Extracted . | . . . . . . Installed . | . . . . . . Triggered . | . . . . . . Exploded 1 | . . . 1 . . Machines | -11 -10 -10 -10 -9 -8 ---------- Run | Scr Mat Min Exi Min Mat Machines Disabled . | . . . . . . Max in Single Turn . | . . . . . . Machines Sabotaged . | . . . . . . Garrisons Compromised . | . . . . . . Overloaded Fab Kills . | . . . . . . Hacking | -11 -10 -10 -10 -9 -8 --------- Run | Scr Mat Min Exi Min Mat Machines Accessed 3 | . 1 . 1 . 1 Terminals 2 | . 1 . . . 1 Fabricators . | . . . . . . Repair Stations . | . . . . . . Recycling Units . | . . . . . . Scanalyzers . | . . . . . . Garrison Access . | . . . . . . Total Hacks 8 | . 2 . 1 . 5 Successful 4 | . 2 . 1 . 1 Failed 4 | . . . . . 4 Catastrophic 1 | . . . . . 1 Database Lockouts . | . . . . . . Manual 8 | . 2 . 1 . 5 Terminals 7 | . 2 . . . 5 Fabricators . | . . . . . . Repair Stations . | . . . . . . Recycling Units . | . . . . . . Scanalyzers . | . . . . . . Garrison Access . | . . . . . . Terminal Hacks 2 | . . . 1 . 1 Unreport Threat 1 | . . . . . 1 EX-Prototype ID Bank 1 | . . . 1 . . Fabricator Hacks . | . . . . . . Repair Station Hacks . | . . . . . . Recycling Unit Hacks . | . . . . . . Scanalyzer . | . . . . . . Garrison Access Hacks . | . . . . . . Unauthorized Hacks 2 | . 2 . . . . Terminals 2 | . 2 . . . . Track 1 | . 1 . . . . Botnet 1 | . 1 . . . . Fabricators . | . . . . . . Repair Stations . | . . . . . . Recycling Units . | . . . . . . Scanalyzers . | . . . . . . Garrison Access . | . . . . . . Data Cores Recovered . | . . . . . . Used . | . . . . . . Hacking Detections 2 | . 1 . . . 1 Full Trace Events . | . . . . . . Feedback Events . | . . . . . . Feedback Blocked . | . . . . . . Robot Schematics Acquired . | . . . . . . Robots Built . | . . . . . . Authchips . | . . . . . . Time . | . . . . . . Total Robot Build Rating . | . . . . . . Part Schematics Acquired . | . . . . . . Parts Built . | . . . . . . Authchips . | . . . . . . Time . | . . . . . . Total Part Build Rating . | . . . . . . Parts Repaired . | . . . . . . Time . | . . . . . . Parts Recycled . | . . . . . . Recycled Matter . | . . . . . . Retrieved Matter . | . . . . . . Retrieved Components . | . . . . . . Parts Scanalyzed . | . . . . . . Part Schematics Acquired . | . . . . . . Parts Damaged . | . . . . . . Bothacking | -11 -10 -10 -10 -9 -8 ------------ Run | Scr Mat Min Exi Min Mat Used RIF Installer . | . . . . . . Robots Hacked . | . . . . . . Non-combat . | . . . . . . Combat . | . . . . . . Robot Hacks Applied . | . . . . . . Relay Couplers Released . | . . . . . . Robots Rewired . | . . . . . . Allies Hacked . | . . . . . . Hacks Repelled . | . . . . . . Allies | -11 -10 -10 -10 -9 -8 -------- Run | Scr Mat Min Exi Min Mat Total Allies . | . . . . . . Largest Group . | . . . . . . Highest-Rated Group . | . . . . . . Highest-Rated Ally . | . . . . . . Total Orders 1 | . . . . . 1 EXPLORE 1 | . . . . . 1 Ally Attacks . | . . . . . . Total Damage . | . . . . . . Kills . | . . . . . . Allies Corrupted . | . . . . . . Allies Melted . | . . . . . . Intel | -11 -10 -10 -10 -9 -8 ------- Run | Scr Mat Min Exi Min Mat Robot Analysis Total . | . . . . . . Derelict Logs Recovered . | . . . . . . Drone Launches 1 | . . . . . 1 Drone Recoveries 1 | . . . . . 1 Exploration | -11 -10 -10 -10 -9 -8 ------------- Run | Scr Mat Min Exi Min Mat Turns Passed 2315 | 78 645 109 365 417 701 Spaces Moved 1219 | 58 350 68 228 257 258 Core 153 | 17 . . . . 136 Treads 953 | . 288 68 228 257 112 Legs 113 | 41 62 . . . 10 Wheels . | . . . . . . Hover . | . . . . . . Flight . | . . . . . . Fastest Speed 50 | 50 120 160 160 160 120 Average Speed 160 | 107 152 160 160 160 185 Slowest Speed 350 | 190 160 160 160 160 350 Overloaded Moves . | . . . . . . Propulsion Burnouts . | . . . . . . Robots Hopped . | . . . . . . Cave-ins Triggered . | . . . . . . Exploration Rate (%) 35 | 3 30 21 63 62 32 Regions Visited 5 Branch Regions 3 Pre-discovered Areas . | . . . . . . Known Exits Taken . | . . . . . . Unknown Exits Taken 5 | 1 1 1 1 1 . Scrap Searched 1 | . . . . 1 . Spaces Dug . | . . . . . . Terrain Destroyed 19 | . . . . . 19 Melee . | . . . . . . Projectile 1 | . . . . . 1 AOE 18 | . . . . . 18 Terrain Rammed . | . . . . . . Walls Destroyed . | . . . . . . Machines Disabled . | . . . . . . Actions | -11 -10 -10 -10 -9 -8 --------- Run | Scr Mat Min Exi Min Mat Total 1440 | 71 432 69 229 263 376 Wait 64 | . 43 . . 5 16 Move 1214 | 57 349 67 227 256 258 Hop . | . . . . . . Pick Up 31 | 8 10 1 1 . 11 Fast Attach 4 | 4 . . . . . Attach 24 | 2 2 . . . 20 Detach 9 | . 1 . . . 8 Swap 6 | . 4 . . 1 1 Drop 10 | . 7 1 1 1 . Fire 76 | . 15 . . . 61 Melee . | . . . . . . Ram 1 | . . . . . 1 Kick . | . . . . . . Crush 1 | . 1 . . . . Escape Stasis . | . . . . . . Rewire . | . . . . . . Trap . | . . . . . . Miscellaneous . | . . . . . . Route ------- -11/Scrapyard -10/Materials (discovered 2 exits: [*Min x2]) -10/Mines -10/Exiles (discovered 2 exits: [*Min x2]) -9/Mines -8/Materials History --------- Turn | Location | Event 5 | -11/Scrapyard | Discovered new exit (range 16) 79 | -11/Scrapyard | Entered Materials 207 | -10/Materials | Discovered new exit (range 7) 310 | -10/Materials | Build established: Mutant 695 | -10/Materials | Discovered new exit (range 14) 724 | -10/Materials | Entered Mines 825 | -10/Mines | Deemed a non-threat by the Exiles lab entrance 827 | -10/Mines | Discovered new exit (range 5) 833 | -10/Mines | Entered Exiles 859 | -10/Exiles | Discovered new exit (range 14) 893 | -10/Exiles | Met 8R-AWN 918 | -10/Exiles | Met EX-HEX 973 | -10/Exiles | Met EX-BIN 995 | -10/Exiles | Aligned with FarCom system 997 | -10/Exiles | Given EX-Vault access code 1033 | -10/Exiles | Opened EX-Vault 1044 | -10/Exiles | Found Supersonic Drone Bay 1077 | -10/Exiles | Warned to stay clear of 0b10 Research branches 1100 | -10/Exiles | Exiles lab attacked by MAIN.C 1179 | -10/Exiles | Discovered new exit (range 10) 1198 | -10/Exiles | Left Exiles lab with Supersonic Drone Bay 1198 | -10/Exiles | Entered Mines 1265 | -9/Mines | Met a Derelict bent on vengeance 1332 | -9/Mines | Assembled infested the area 1337 | -9/Mines | Assisted by a Guerilla fighting off Assembled 1502 | -9/Mines | Build established: Skirmisher 1558 | -9/Mines | Discovered new exit (range 13) 1615 | -9/Mines | Entered Materials 1615 | -8/Materials | Evolved 4 slots: Propulsion x2, Utility x2 1917 | -8/Materials | Lost 8 parts (1p2n2u3w) 1960 | -8/Materials | Core integrity fell below 50% 1998 | -8/Materials | Lost 3 parts (1p2n) 2274 | -8/Materials | Core integrity fell below 20% 2316 | -8/Materials | Destroyed by Y-45 Defender with Beam Rifle Last Messages --------------- 02140_ K-01 Serf collects debris. 02143_ K-01 Serf cleans the Nuclear Reactor. 02143_ G-47 Trooper destroyed. 02148_ K-01 Serf collects debris. 02150_ Acquired 45 matter. 02151_ K-01 Serf collects debris. 02152_ Acquired 21 matter. 02155_ K-01 Serf collects debris. 02155_ K-01 Serf cleans the Nuclear Reactor. 02156_ R-06 Scavenger collects Particle Gun. 02158_ Acquired Aluminum Leg. 02161_ K-01 Serf collects debris. 02171_ Slammed into W-25 Informer. 02203_ W-25 Informer sends out distress signal. 02209_ Connecting with Terminal... 02209_ Current location identified: Materials >>Alert(Purge) Purged threat record, alert level lowered. 02215_ K-01 Serf cleans the Nuclear Reactor. 02273_ Terrain Scanner destroyed. Map ----- +----------------------------------------------------+ | | | | | | | | | | | | | | | | | | | | | | | | | | | | | | | | | | | | | | | ????????????????????????????????????????? | | ????????????????????????????????????????? | | ????????????????????????????????????????? | | ????????????????????????????????????????? | | ??????????????????########??????????????? | | ??????????????????# Y #########??????? | | ????? ???#?##### """ @ #????? | | ????? ???## # "T" ######+# #????? | | ????### ???# + " " #??????????????? | | ??? ???# # #??????????????? | | ?? ??## ## #??????????????? | | ?? #??# #########??????????????? | | ? #### # [ #?? ?????????????? | | ? # #????????????????? | | ? Y # """#????????????????? | | ? + """#????????????????? | | # """#????????????????? | | # #????????????????? | | """ # #?##?????????????? | | ? """ #######?#??? ??????????? | | """ ##### ##????????????? | | #?#????H??????? | | ##### #?????????????? | | "" """ #???###???? ??????????? | | "" """ #?#?#?????????????????? | | "" """ #######??????? ???????? | | # ????????????? | | # """ """ ?? ?????????? | | "" ^""" # """ """ ????????????? | | "" """ # """ """ #? ?????????? | | "" """ ##### + """ """ # ?? ?????? | +----------------------------------------------------+ Best States ------------- Heat Dissipation 31 Energy Generation 14 Energy Capacity 250 Matter Stores 300 Matter Capacity 300 Sight Range 16 Terrain Scan Range 14 Terrain Scan Density 60 Armor Coverage 150 Evasion (%) 55 Recoil Reduction 2 Item Schematics ----------------- None Robot Schematics ------------------ None Fabricated ------------ Nothing Alien Tech Used ----------------- None Achievements -------------- None Challenges ------------ None Game ------ Seed ShrapnelSubatomicDriver Manual? 0 Play Time 00:21:24 Cumulative 77.1 hours Start 2021.11.05 @ 01:37:50 End 2021.11.05 @ 01:56:27 Sessions 1 Manual Loads 0 Difficulty Rogue Special Mode None Game No. 97 Rogue 97 Adventurer 0 Explorer 0 Win Type - Total 0 Types 0/0/0/0/0/0/0/0/0 Lore% 52 Gallery% 46 Achievement% 40 Wizard Run 0 Options --------- ASCII 1 Keyboard 0 Movement Vi Keybinds 0 Fullscreen 2 Font 20/SmallcapsGlow Map View 66x50 Tactical HUD 1 Map Filters NONE Filters NONE Steam 1 RUN: 9c605f93-6b9b-4417-91f3-22df697d5429